Cogmind - Beta 16 *** ADVENTURER MODE // 2025.10.22 @ 20:38:05 Player: Bulbasornado Result: Escaped! Performance ------------- Evolutions (9) 4500 Regions Visited (22) 4400 Robots Destroyed (47) 235 Value Destroyed (1260) 1260 Prototype IDs (71) 1420 Alien Tech Used (3) 600 Bonus (4581) 4581 TOTAL SCORE: 16996 Bonus ------- Follower Combat Kills 81 Network Hubs Disabled 600 Aligned with FarCom 300 Met Zhirov 300 Read Decrypted Archives 300 Win 3000 Cogmind --------- Core Integrity 1600/1600 Matter 195/300 Energy 516/540 System Corruption 0% Temperature Cool (47) Movement Flying (16) Location To Epsilon Eridani Parts ------- > --- POWER (2) -------- Backup Power VII Light Quantum Reactor > --- PROPULSION (9) --- VTOL Module Nuclear Pulse Array Nuclear Pulse Array Impulse Thruster Advanced Surge Thruster Diametric Drive Cooled Q-thruster > --- UTILITY (12) ----- Energy Well Enhanced Optical Array Long-range Terrain Scanner Advanced Terrain Scan Processor Advanced Reaction Control System Reflective Plating Powered Armor Advanced Point Defense System Improved Hacking Suite Improved Hacking Suite System Shield Advanced System Shield > --- WEAPON (2) ------- Greatsword > --- INVENTORY (5) ---- Neutrino Core Micro Antimatter Reactor Advanced Terrain Scanner Long-range Terrain Scanner Improved Proton Missile Launcher Peak State ------------ > --- POWER ------------ Backup Power VII Light Quantum Reactor > --- PROPULSION ------- VTOL Module Nuclear Pulse Array Nuclear Pulse Array Impulse Thruster Advanced Surge Thruster Diametric Drive Cooled Q-thruster > --- UTILITY ---------- Energy Well Enhanced Optical Array Advanced Signal Interpreter Long-range Terrain Scanner Advanced Terrain Scan Processor Advanced Reaction Control System Reflective Plating Powered Armor Advanced Point Defense System Improved Hacking Suite Improved Hacking Suite Advanced System Shield > --- WEAPON ----------- Greatsword > --- INVENTORY -------- Neutrino Core Micro Antimatter Reactor Advanced Terrain Scanner Long-range Terrain Scanner Improved Proton Missile Launcher [Rating: 149] Favorites ----------- Power Ion Engine Engine Ion Engine Power Core Light Fission Core Reactor Light Quantum Reactor Propulsion Light Treads Treads Light Treads Leg Potential Leg Hover Unit Improved Linear Gravjet Flight Unit VTOL Module Utility Light Armor Plating Device Advanced Reaction Control System Storage High-capacity Storage Unit Processor Advanced Terrain Scan Processor Hackware Improved Hacking Suite Protection Light Armor Plating Weapon Light Cannon Energy Gun Particle Gun Ballistic Gun Light Assault Rifle Ballistic Cannon Light Cannon Launcher Proton Missile Launcher Slashing Weapon Greatsword Build | -11 -10 -10 -10 -9 -8 -7 -7 -7 -6 -5 -5 -5 -5 -4 -4 -4 -4 -4 -4 -3 -2 -1 ------- Run | Yrd Mat Min Exi Min Mat Fac Was Fac Fac Fac Upp Upp Zhi Pro Fac Ext Cet Arc Hub Res Res Acc Slots Evolved 18 | . . . . . 4 2 . . 2 2 . . . . 2 . . . . 2 2 2 Power 1 | . . . . . . . . . . . . . . . . . . . . 1 . . Propulsion 7 | . . . . . 2 . . . . 1 . . . . 1 . . . . 1 1 1 Utility 10 | . . . . . 2 2 . . 2 1 . . . . 1 . . . . . 1 1 Weapon . | . . . . . . . . . . . . . . . . . . . . . . . Parts Attached 95 | 2 5 5 3 1 14 10 . 8 11 4 1 . 2 1 5 4 . 1 2 5 7 4 Power 8 | . . . . . 2 1 . . 2 . . . . . . 1 . . . 1 . 1 Engine 3 | . . . . . 2 . . . 1 . . . . . . . . . . . . . Core 4 | . . . . . . 1 . . 1 . . . . . . 1 . . . 1 . . Reactor 1 | . . . . . . . . . . . . . . . . . . . . . . 1 Propulsion 29 | 2 . . 2 . 6 . . 6 2 1 . . 1 . 1 1 . . 1 1 4 1 Treads 8 | 2 . . . . 5 . . 1 . . . . . . . . . . . . . . Leg 2 | . . . 2 . . . . . . . . . . . . . . . . . . . Wheel . | . . . . . . . . . . . . . . . . . . . . . . . Hover 1 | . . . . . . . . . . . . . . . . . . . . . 1 . Flight 18 | . . . . . 1 . . 5 2 1 . . 1 . 1 1 . . 1 1 3 1 Utility 47 | . 3 1 1 . 5 7 . 1 7 3 1 . 1 1 4 2 . 1 1 3 3 2 Device 13 | . . 1 . . . 1 . 1 2 2 . . . . 3 1 . . . . 1 1 Storage 4 | . 2 . 1 . . . . . . . . . . . . . . . . 1 . . Processor 13 | . . . . . 2 4 . . 3 . . . . . 1 . . . . 2 1 . Hackware 8 | . . . . . . 2 . . . 1 1 . 1 . . 1 . 1 . . . 1 Protection 9 | . 1 . . . 3 . . . 2 . . . . 1 . . . . 1 . 1 . Artifact . | . . . . . . . . . . . . . . . . . . . . . . . Weapon 11 | . 2 4 . 1 1 2 . 1 . . . . . . . . . . . . . . Energy Gun 1 | . 1 . . . . . . . . . . . . . . . . . . . . . Energy Cannon . | . . . . . . . . . . . . . . . . . . . . . . . Ballistic Gun 4 | . 1 2 . . 1 . . . . . . . . . . . . . . . . . Ballistic Cannon 1 | . . 1 . . . . . . . . . . . . . . . . . . . . Launcher 2 | . . . . 1 . 1 . . . . . . . . . . . . . . . . Special Weapon . | . . . . . . . . . . . . . . . . . . . . . . . Impact Weapon . | . . . . . . . . . . . . . . . . . . . . . . . Slashing Weapon 3 | . . 1 . . . 1 . 1 . . . . . . . . . . . . . . Piercing Weapon . | . . . . . . . . . . . . . . . . . . . . . . . Special Melee Weapon . | . . . . . . . . . . . . . . . . . . . . . . . Unidentified Prototypes 9 | . . 1 . . 1 . . . 1 . 1 . 2 . . 1 . . . . 2 . Parts Lost 6 | . . . . . 1 . . . . . . . . . . 1 . . 2 1 1 . Power . | . . . . . . . . . . . . . . . . . . . . . . . Propulsion 1 | . . . . . . . . . . . . . . . . . . . . . 1 . Utility 5 | . . . . . 1 . . . . . . . . . . 1 . . 2 1 . . Weapon . | . . . . . . . . . . . . . . . . . . . . . . . Highest Loss Streak 2 | . . . . . 1 . . . . . . . . . . 1 . . 2 1 1 . To Critical Strikes . | . . . . . . . . . . . . . . . . . . . . . . . Average Backups 12 | 6 10 14 15 18 19 19 20 19 5 3 4 4 4 4 4 4 5 5 5 3 4 4 Power 1 | 1 1 1 2 2 1 2 3 2 . 1 1 1 1 1 1 1 2 2 2 1 2 2 Propulsion 2 | 4 3 2 2 2 2 5 7 6 1 . 1 1 1 1 1 1 1 1 1 . . . Utility 4 | . 2 5 6 9 9 7 8 9 1 . . . . . . . 1 1 1 . . 1 Weapon 3 | 1 3 5 5 5 5 3 2 2 1 2 2 2 1 1 1 1 1 1 1 1 1 1 Tool/Special . | . . . . . . . . . . . . . . . . . . . . . . . Unused Backups 31 | . 4 6 . . 4 5 1 2 4 . . . . . . . . . . . 2 3 Power 4 | . . . . . 1 . . 1 . . . . . . . . . . . . 1 1 Propulsion 6 | . 1 4 . . . . . 1 . . . . . . . . . . . . . . Utility 11 | . 1 2 . . 1 2 1 . 2 . . . . . . . . . . . 1 1 Weapon 10 | . 2 . . . 2 3 . . 2 . . . . . . . . . . . . 1 Tool/Special . | . . . . . . . . . . . . . . . . . . . . . . . Average Slot Usage (%) 95 | . 98 99 100 100 97 97 100 98 92 93 94 94 94 93 88 88 89 89 86 79 82 87 Engine 6 | . 14 14 14 14 9 2 . . 1 . . . . . . . . . . . . . Core 2 | . . . . . . 4 7 7 4 5 5 5 5 5 5 5 5 5 5 8 8 4 Treads 12 | . 28 28 17 . 14 15 15 14 . . . . . . . . . . . . . . Leg 6 | . . . 10 28 18 15 15 14 . . . . . . . . . . . . . . Flight 9 | . . . . . 2 . . 1 26 29 29 29 29 29 25 26 26 26 25 22 24 27 Device 4 | . . . . . . . . . 14 16 17 17 15 11 11 10 15 15 11 9 9 12 Storage 7 | . 14 14 14 14 9 7 7 7 . . . . . . . . . . . 1 3 4 Processor 6 | . . . . . 8 17 7 7 17 14 8 5 5 5 8 10 10 10 10 12 10 9 Hackware 7 | . . . . . . 1 15 15 13 14 20 23 25 23 21 21 21 21 20 14 13 14 Protection 11 | . 12 14 14 14 17 15 15 15 6 5 5 5 5 10 10 9 5 5 7 4 6 8 Energy Gun 1 | . 18 . . . . . . . . . . . . . . . . . . . . . Ballistic Gun 5 | . 9 13 . 8 9 6 . . . . . . . . . . . . . . . . Ballistic Cannon 5 | . . 13 14 14 9 3 . . . . . . . . . . . . . . . . Slashing Weapon 3 | . . . 14 5 . 3 7 7 6 5 5 5 5 5 5 5 5 5 5 3 4 4 Peak Build Rating 149 | 6 9 17 28 28 41 54 54 55 55 62 63 63 68 65 86 92 92 93 93 108 132 149 Average Rating 45 | 5 8 8 16 28 36 47 54 53 49 60 62 63 63 64 83 87 92 92 89 102 120 147 On Entrance 57 | 6 6 9 9 28 28 41 54 54 38 54 62 63 63 65 65 86 92 92 93 79 108 132 Avg Prop Armor Cover (%) 11 | 19 . . . . 10 14 15 14 . . . . . . . . . 2 . . 3 1 Naked Turns . | . . . . . . . . . . . . . . . . . . . . . . . Heaviest Build 60 | 13 32 33 53 53 60 60 60 60 55 20 19 19 19 21 24 30 29 29 30 36 50 52 Greatest Support 65 | 40 40 40 60 60 60 60 60 60 22 27 27 27 28 27 35 35 35 35 35 47 59 65 Greatest Overweight (x) 4 | 4 . . 1 . . . . 2 2 . . . . . . . . . . . . . Average Overweight (x) . | 2 . . . . . . . . . . . . . . . . . . . . . . Largest Inventory Capacity 20 | 8 15 15 20 20 20 20 20 20 20 5 5 5 5 5 5 5 5 5 5 5 5 5 Average Capacity 12 | 8 11 15 16 20 20 20 20 20 5 5 5 5 5 5 5 5 5 5 5 5 5 5 Most Carried 20 | 8 14 15 18 20 20 20 20 20 15 5 5 5 5 5 5 5 5 5 5 5 5 5 Average Carried 12 | 6 10 14 15 19 19 19 20 19 5 4 5 5 5 5 4 4 5 5 4 3 4 4 Final Capacity 20 | 8 15 15 20 20 20 20 20 20 5 5 5 5 5 5 5 5 5 5 5 5 5 5 Final Carried 20 | 7 14 15 18 20 20 20 20 16 5 5 5 5 5 5 5 5 5 5 5 4 5 5 Class Distribution -------------------- 56% | Mutant 24% | Hacker-Scout 7% | Hacker-Mutant 5% | Hacker-Sprinter Dominant Class ---------------- Mutant | -10/Materials Mutant | -10/Mines Mutant | -10/Exiles Mutant | -9/Mines Mutant | -8/Materials Mutant | -7/Factory Hacker-Mutant | -7/Waste Hacker-Mutant | -7/Factory Hacker-Scout | -6/Factory Hacker-Ninja | -5/Factory Hacker-Sprinter | -5/Upper Caves Hacker-Sprinter | -5/Upper Caves Hacker-Sprinter | -5/Zhirov Hacker-Sprinter | -4/Proximity Caves Hacker-Scout | -4/Factory Hacker-Scout | -4/Extension Hacker-Scout | -4/Cetus Wizard-Scout | -4/Archives Wizard-Scout | -4/Hub_04(d) Hacker-Scout | -3/Research Hacker-Scout | -2/Research Hacker-Scout | -1/Access Resources | -11 -10 -10 -10 -9 -8 -7 -7 -7 -6 -5 -5 -5 -5 -4 -4 -4 -4 -4 -4 -3 -2 -1 ----------- Run | Yrd Mat Min Exi Min Mat Fac Was Fac Fac Fac Upp Upp Zhi Pro Fac Ext Cet Arc Hub Res Res Acc Matter Collected 1591 | 220 53 149 112 19 306 129 . 123 88 . 131 . 30 30 31 50 . 10 20 . 90 . Remotely . | . . . . . . . . . . . . . . . . . . . . . . . Salvage Created 1967 | 80 457 201 . 15 298 223 . 29 28 . 75 . 30 . . 494 . 37 . . . . Parts 107 | 4 25 15 . 6 13 18 . 1 3 . 1 . . . . 16 . 5 . . . . Haulers Intercepted 4 | . 1 . . . 3 . . . . . . . . . . . . . . . . . Recyclers Shooed 5 | 1 3 . . 1 . . . . . . . . . . . . . . . . . . Parts Field Recycled . | . . . . . . . . . . . . . . . . . . . . . . . Retrieved Matter . | . . . . . . . . . . . . . . . . . . . . . . . Parts Self-Destructed 2 | . . . . . . . . . . . 2 . . . . . . . . . . . Prevented 3 | . . . . . . . . . . . 3 . . . . . . . . . . . Parts Restored . | . . . . . . . . . . . . . . . . . . . . . . . Kills | -11 -10 -10 -10 -9 -8 -7 -7 -7 -6 -5 -5 -5 -5 -4 -4 -4 -4 -4 -4 -3 -2 -1 ------- Run | Yrd Mat Min Exi Min Mat Fac Was Fac Fac Fac Upp Upp Zhi Pro Fac Ext Cet Arc Hub Res Res Acc Combat Hostiles Destroyed 31 | . 8 9 . 4 3 5 . . . . . . . . . 2 . . . . . . Melee 2 | . . . . . . . . . . . . . . . . 2 . . . . . . Guns 19 | . 8 7 . . 2 2 . . . . . . . . . . . . . . . . Cannons 7 | . . 2 . 1 1 3 . . . . . . . . . . . . . . . . AOE 3 | . . . . 3 . . . . . . . . . . . . . . . . . . Classes Destroyed 9 | 2 3 . . . 2 1 . 1 . . . . . . . . . . . . . . Worker 1 | . . . . . . 1 . . . . . . . . . . . . . . . . Builder 1 | . . . . . 1 . . . . . . . . . . . . . . . . . Tunneler 1 | 1 . . . . . . . . . . . . . . . . . . . . . . Hauler 4 | . 1 . . . 3 . . . . . . . . . . . . . . . . . Recycler 6 | 1 2 . . . . 1 . . . . . . . . . 2 . . . . . . Watcher 3 | . . . . . . . . 1 1 . . . . . . 1 . . . . . . Swarmer 16 | . 3 5 . 4 . 4 . . . . . . . . . . . . . . . . Grunt 12 | . 5 4 . . 1 1 . . . . . . . . . 1 . . . . . . Sentry 3 | . . . . . 2 . . . . . . . . . . 1 . . . . . . Best Kill Streak 4 | 2 3 3 . 4 2 4 . 1 1 . . . . . . 3 . . . . . . Combat Bots Only 4 | . 3 3 . 4 1 3 . . . . . . . . . 1 . . . . . . Max Kills in Single Turn 3 | 1 2 1 . 3 1 1 . 1 1 . . . . . . 1 . . . . . . Gunslinging 1 | . 1 . . . . . . . . . . . . . . . . . . . . . Exploded 3 | . . . . 3 . . . . . . . . . . . . . . . . . . Melee 1 | . . . . . . . . . . . . . . . . 1 . . . . . . Uniques/NPCs Destroyed . | . . . . . . . . . . . . . . . . . . . . . . . Combat | -11 -10 -10 -10 -9 -8 -7 -7 -7 -6 -5 -5 -5 -5 -4 -4 -4 -4 -4 -4 -3 -2 -1 -------- Run | Yrd Mat Min Exi Min Mat Fac Was Fac Fac Fac Upp Upp Zhi Pro Fac Ext Cet Arc Hub Res Res Acc Hostile Shots Fired 237 | . 32 31 . 6 13 15 . 1 7 4 3 7 . 6 11 22 8 . 41 15 13 2 Missed 109 | . 6 7 . 1 3 5 . . 7 3 2 5 . 3 8 13 5 . 25 7 7 2 Hits 128 | . 26 24 . 5 10 10 . 1 . 1 1 2 . 3 3 9 3 . 16 8 6 . Melee 4 | . . . . . . . . . . . . . . . . . . . 4 . . . Projectile 124 | . 26 24 . 5 10 10 . 1 . 1 1 2 . 3 3 9 3 . 12 8 6 . AOE 1 | . . . . . . . . . . . . . . . . . . . . . 1 . Critical Strikes 5 | . 2 1 . . . . . . . . . . . . . . . . 2 . . . Damage Taken 1747 | . 234 192 . 29 114 118 . 10 . 11 13 32 . 43 85 158 50 . 266 147 245 . Core 272 | . 78 37 . 9 . 11 . . . . . 16 . . . 32 . . 69 . 20 . Absorbed by Shields . | . . . . . . . . . . . . . . . . . . . . . . . Ignored by Resistances 563 | . 75 57 . 10 33 33 . 3 . 6 4 14 . 20 30 57 22 . 88 45 66 . Regen/Repaired (Parts) 198 | . . . . . . . . . . . . . . . . . . . . 151 47 . Core Remaining (%) 92 | 100 . . . 50 100 . . 98 100 . . . . 98 . . . . 83 100 98 100 Volleys Fired 88 | 4 29 23 . 3 21 8 . . . . . . . . . . . . . . . . Largest 2 | 2 2 2 . 1 2 2 . . . . . . . . . . . . . . . . Hottest 85 | 80 85 85 . 30 55 55 . . . . . . . . . . . . . . . . Shots Fired 165 | 8 54 46 . 3 39 15 . . . . . . . . . . . . . . . . Gun 116 | 8 54 28 . . 18 8 . . . . . . . . . . . . . . . . Cannon 48 | . . 18 . 2 21 7 . . . . . . . . . . . . . . . . Launcher 1 | . . . . 1 . . . . . . . . . . . . . . . . . . Special . | . . . . . . . . . . . . . . . . . . . . . . . Kinetic 110 | . 13 41 . 2 39 15 . . . . . . . . . . . . . . . . Thermal 38 | 4 29 5 . . . . . . . . . . . . . . . . . . . . Explosive 1 | . . . . 1 . . . . . . . . . . . . . . . . . . Electromagnetic 16 | 4 12 . . . . . . . . . . . . . . . . . . . . . Robot Hit Streak 31 | 8 19 20 . 6 31 6 . . . . . . . . . . . . . . . . Robot Miss Streak 2 | . 1 1 . . 1 2 . . . . . . . . . . . . . . . . Penetration Max . | . . . . . . . . . . . . . . . . . . . . . . . Secondary Targets 3 | . 1 2 . . . . . . . . . . . . . . . . . . . . Max Gunslinging Chain 1 | . 1 1 . . . . . . . . . . . . . . . . . . . . Shots Hit Robots 153 | 8 49 36 . 3 32 10 . 4 1 . 2 . 1 . . 5 . 1 . . . 1 Core Hits 78 | 3 21 17 . 4 13 11 . 1 1 . 1 . 1 . . 4 . 1 . . . . Critical Kills . | . . . . . . . . . . . . . . . . . . . . . . . Critical Parts Destroyed . | . . . . . . . . . . . . . . . . . . . . . . . Critical Strikes . | . . . . . . . . . . . . . . . . . . . . . . . Melee Attacks 87 | . . 4 . . . 2 . 12 19 2 5 1 1 1 10 6 1 1 3 1 4 14 Impact . | . . . . . . . . . . . . . . . . . . . . . . . Slashing 87 | . . 4 . . . 2 . 12 19 2 5 1 1 1 10 6 1 1 3 1 4 14 Piercing . | . . . . . . . . . . . . . . . . . . . . . . . Sneak Attacks 4 | . . . . . . . . . 1 . . . . . . 3 . . . . . . Combat Hostiles 1 | . . . . . . . . . . . . . . . . 1 . . . . . . Follow-up Attacks . | . . . . . . . . . . . . . . . . . . . . . . . Damage Inflicted 3543 | 124 613 473 . 237 568 281 . 145 100 . 148 . 143 . . 494 . 146 . . . 71 Guns 1204 | 100 584 216 . . 203 101 . . . . . . . . . . . . . . . . Cannons 632 | . . 235 . 32 276 89 . . . . . . . . . . . . . . . . Explosions 188 | 24 . . . 164 . . . . . . . . . . . . . . . . . . Melee 1247 | . . . . . . . . 145 100 . 148 . 143 . . 494 . 146 . . . 71 Ramming 272 | . 29 22 . 41 89 91 . . . . . . . . . . . . . . . . Kinetic 1196 | . 91 404 . 32 479 190 . . . . . . . . . . . . . . . . Thermal 465 | 68 350 47 . . . . . . . . . . . . . . . . . . . . Explosive 164 | . . . . 164 . . . . . . . . . . . . . . . . . . Electromagnetic 199 | 56 143 . . . . . . . . . . . . . . . . . . . . . Impact . | . . . . . . . . . . . . . . . . . . . . . . . Slashing 1247 | . . . . . . . . 145 100 . 148 . 143 . . 494 . 146 . . . 71 Piercing . | . . . . . . . . . . . . . . . . . . . . . . . Highest Corruption . | . . . . . . . . . . . . . . . . . . . . . . . Average Corruption . | . . . . . . . . . . . . . . . . . . . . . . . Corruption Purged . | . . . . . . . . . . . . . . . . . . . . . . . Corruption Blocked . | . . . . . . . . . . . . . . . . . . . . . . . Overload Shots . | . . . . . . . . . . . . . . . . . . . . . . . Overflow Damage 148 | . . 4 . 10 31 . . 2 . . . . . . . 100 . . . . . 1 Projectiles 4 | . . 4 . . . . . . . . . . . . . . . . . . . . Explosions 10 | . . . . 10 . . . . . . . . . . . . . . . . . . Melee 134 | . . . . . 31 . . 2 . . . . . . . 100 . . . . . 1 Knockbacks 3 | . . 2 . . 1 . . . . . . . . . . . . . . . . . Impact 1 | . . . . . 1 . . . . . . . . . . . . . . . . . Kinetic 2 | . . 2 . . . . . . . . . . . . . . . . . . . . Secondary . | . . . . . . . . . . . . . . . . . . . . . . . Self-Inflicted Damage . | . . . . . . . . . . . . . . . . . . . . . . . Shots . | . . . . . . . . . . . . . . . . . . . . . . . Rammed 7 | . 4 3 . . . . . . . . . . . . . . . . . . . . Targets Rammed 22 | . 5 3 . 3 3 8 . . . . . . . . . . . . . . . . Kicked 14 | . . . . 3 3 8 . . . . . . . . . . . . . . . . Crushed 1 | . 1 . . . . . . . . . . . . . . . . . . . . . Highest Temperature 231 | 72 231 112 . . 20 8 . . 1 . . . . . . . . . . . 7 114 Average Temperature 52 | 38 93 24 . . 10 3 . . 1 . . . . . . . . . . . 7 39 Received Heat Transfer 504 | . 171 87 . . 63 18 . 9 . . . 9 . 18 18 33 9 . 51 18 . . Effects 1 | . 1 . . . . . . . . . . . . . . . . . . . . . Interference 1 | . 1 . . . . . . . . . . . . . . . . . . . . . Siege Activations . | . . . . . . . . . . . . . . . . . . . . . . . Martial Activations . | . . . . . . . . . . . . . . . . . . . . . . . Shielding Activations . | . . . . . . . . . . . . . . . . . . . . . . . Robots Disrupted . | . . . . . . . . . . . . . . . . . . . . . . . Combat Hostiles . | . . . . . . . . . . . . . . . . . . . . . . . Robots Corrupted . | . . . . . . . . . . . . . . . . . . . . . . . Combat Hostiles . | . . . . . . . . . . . . . . . . . . . . . . . Parts Fried 4 | . . . . . 4 . . . . . . . . . . . . . . . . . Impact Corruptions 2 | . . . . . 2 . . . . . . . . . . . . . . . . . Robots Melted . | . . . . . . . . . . . . . . . . . . . . . . . Combat Hostiles . | . . . . . . . . . . . . . . . . . . . . . . . Parts Melted 1 | . . 1 . . . . . . . . . . . . . . . . . . . . Heat Transferred 1045 | 150 784 111 . . . . . . . . . . . . . . . . . . . . Parts Sabotaged . | . . . . . . . . . . . . . . . . . . . . . . . Parts Stolen . | . . . . . . . . . . . . . . . . . . . . . . . Parts Stripped . | . . . . . . . . . . . . . . . . . . . . . . . Power Chain Reactions 1 | 1 . . . . . . . . . . . . . . . . . . . . . . Alert | -11 -10 -10 -10 -9 -8 -7 -7 -7 -6 -5 -5 -5 -5 -4 -4 -4 -4 -4 -4 -3 -2 -1 ------- Run | Yrd Mat Min Exi Min Mat Fac Was Fac Fac Fac Upp Upp Zhi Pro Fac Ext Cet Arc Hub Res Res Acc Maximum Alert Level . | . . . . . . . . . . . . . . . . . . . . . . . Low Security (%) 100 | 100 100 100 . 100 100 100 100 100 100 100 . . . . 100 100 100 100 100 100 100 100 Level 1 . | . . . . . . . . . . . . . . . . . . . . . . . Level 2 . | . . . . . . . . . . . . . . . . . . . . . . . Level 3 . | . . . . . . . . . . . . . . . . . . . . . . . Level 4 . | . . . . . . . . . . . . . . . . . . . . . . . Level 5 . | . . . . . . . . . . . . . . . . . . . . . . . High Security . | . . . . . . . . . . . . . . . . . . . . . . . Max Security . | . . . . . . . . . . . . . . . . . . . . . . . Peak Influence 176 | 10 150 74 . 98 30 101 23 31 96 21 . . . . 72 68 24 10 152 176 86 95 Initial 81 | . . . . . 15 . 23 . . 21 . . . . 11 21 22 5 . 65 81 12 Average 31 | 2 67 21 . 45 3 49 10 3 34 11 . . . . 20 18 20 2 96 87 65 41 Influence Increases 2456 | 10 285 294 . 98 117 272 . 52 240 21 20 75 5 60 110 137 6 5 194 229 73 153 Destroy 0b10 Robot/C 740 | . 160 240 . 80 60 100 . . . . . . . . . 100 . . . . . . Destroy 0b10 Robot/NC 100 | 10 15 . . . 20 10 . 5 5 . 5 . 5 . . 20 . 5 . . . . Destroy Leader 154 | . 42 50 . 10 26 10 . 2 2 . . . . . . 12 . . . . . . Allied During Kill 7 | . . 4 . . . . . . . . . . . . . 3 . . . . . . Successful Hack 482 | . 23 . . . 11 89 . 7 127 . . . . . 12 . 4 . 8 77 25 99 Select Force Hacks 180 | . 30 . . . . . . . . . . . . . . . . . 150 . . . Disable Machine 18 | . . . . . . . . . . . . . . . 9 . . . . . 9 . Destroy Structure 115 | . . . . 8 . 3 . 8 16 6 . . . . 14 2 2 . 6 2 9 39 Partial Spotted 195 | . 15 . . . . . . . 30 15 . . . . 45 . . . . 45 30 15 Lose Combat Pursuer 465 | . . . . . . 60 . 30 60 . 15 75 . 60 30 . . . 30 105 . . Influence Decreases 2361 | 10 285 294 . 50 165 191 81 52 189 71 6 45 50 40 78 142 35 23 50 205 217 82 Entered New Map 428 | . . . . . 33 . 58 . . 30 1 5 45 . 9 31 25 13 . 79 87 12 Time Decay 1794 | 10 285 294 . 50 132 191 20 52 189 21 5 40 5 20 69 81 10 10 30 90 120 70 Lost Part 50 | . . . . . . . . . . . . . . . . 10 . . 20 10 10 . Lost Ally 63 | . . . . . . . 3 . . 20 . . . 20 . 20 . . . . . . Purge Threat 26 | . . . . . . . . . . . . . . . . . . . . 26 . . Squads Dispatched 21 | . 1 . . . . 1 . . 2 . . . . . 1 1 . . 8 1 3 3 Investigation 9 | . 1 . . . . . . . . . . . . . . . . . 6 . 1 1 Extermination 5 | . . . . . . 1 . . 1 . . . . . . . . . . 1 1 1 Reinforcement 6 | . . . . . . . . . 1 . . . . . 1 1 . . 1 . 1 1 Assault 1 | . . . . . . . . . . . . . . . . . . . 1 . . . Garrison . | . . . . . . . . . . . . . . . . . . . . . . . Intercept . | . . . . . . . . . . . . . . . . . . . . . . . Searches Triggered . | . . . . . . . . . . . . . . . . . . . . . . . Unchained Authorized 1 | . . . . . . . . . . . . . . . . . . . . . . 1 Construction Impeded 1 | . . . . . . . . . . . . . . . . 1 . . . . . . Haulers Reinforced . | . . . . . . . . . . . . . . . . . . . . . . . Active Scanning Responses . | . . . . . . . . . . . . . . . . . . . . . . . Cargo Convoy Interrupts . | . . . . . . . . . . . . . . . . . . . . . . . Stealth | -11 -10 -10 -10 -9 -8 -7 -7 -7 -6 -5 -5 -5 -5 -4 -4 -4 -4 -4 -4 -3 -2 -1 --------- Run | Yrd Mat Min Exi Min Mat Fac Was Fac Fac Fac Upp Upp Zhi Pro Fac Ext Cet Arc Hub Res Res Acc Distress Signals 9 | . 1 . . . . . . 1 2 . . . . . 1 2 1 . 1 . . . Communications Jammed . | . . . . . . . . . . . . . . . . . . . . . . . Distress Signals . | . . . . . . . . . . . . . . . . . . . . . . . Times Spotted 164 | . 15 12 . 4 5 13 6 4 9 6 7 5 . 8 9 12 5 . 23 7 8 6 Peak Tracking Total 23 | . 5 3 . 4 1 6 6 3 4 5 10 4 . 6 5 5 5 . 23 8 5 3 Tactical Retreats 16 | . . . . . . 4 . 1 3 . 1 2 . 1 1 . . . 1 2 . . Traps | -11 -10 -10 -10 -9 -8 -7 -7 -7 -6 -5 -5 -5 -5 -4 -4 -4 -4 -4 -4 -3 -2 -1 ------- Run | Yrd Mat Min Exi Min Mat Fac Was Fac Fac Fac Upp Upp Zhi Pro Fac Ext Cet Arc Hub Res Res Acc Traps Triggered 7 | . . . . . . 2 . . 1 . . . . . . 2 . . . 1 1 . Indirectly . | . . . . . . . . . . . . . . . . . . . . . . . Trap Hack Attempts . | . . . . . . . . . . . . . . . . . . . . . . . Triggered . | . . . . . . . . . . . . . . . . . . . . . . . Disarmed . | . . . . . . . . . . . . . . . . . . . . . . . Reprogrammed . | . . . . . . . . . . . . . . . . . . . . . . . Reused . | . . . . . . . . . . . . . . . . . . . . . . . Traps Extracted . | . . . . . . . . . . . . . . . . . . . . . . . Installed . | . . . . . . . . . . . . . . . . . . . . . . . Triggered . | . . . . . . . . . . . . . . . . . . . . . . . Machines | -11 -10 -10 -10 -9 -8 -7 -7 -7 -6 -5 -5 -5 -5 -4 -4 -4 -4 -4 -4 -3 -2 -1 ---------- Run | Yrd Mat Min Exi Min Mat Fac Was Fac Fac Fac Upp Upp Zhi Pro Fac Ext Cet Arc Hub Res Res Acc Machines Disabled 3 | . . . . . . . . . . . 1 . . . 1 . . . . . 1 . Max in Single Turn 1 | . . . . . . . . . . . 1 . . . 1 . . . . . 1 . Garrison Access 6 | . . . . . . . . 1 2 . . . . . . . . . 1 1 . 1 Network Hub 3 | . . . . . . . . . . . . . . . . . . . 3 . . . Machines Repaired . | . . . . . . . . . . . . . . . . . . . . . . . Machines Dismantled . | . . . . . . . . . . . . . . . . . . . . . . . Machines Sabotaged 3 | . . . . . . . . . . . . . . . . . . . 3 . . . Overloaded Fab Kills . | . . . . . . . . . . . . . . . . . . . . . . . Hacking | -11 -10 -10 -10 -9 -8 -7 -7 -7 -6 -5 -5 -5 -5 -4 -4 -4 -4 -4 -4 -3 -2 -1 --------- Run | Yrd Mat Min Exi Min Mat Fac Was Fac Fac Fac Upp Upp Zhi Pro Fac Ext Cet Arc Hub Res Res Acc Machines Accessed 95 | . 6 . 2 . 5 9 . 6 22 1 4 1 3 . 5 2 1 1 6 9 5 7 Terminals 47 | . 4 . . . 2 8 . 1 10 1 . . . . 3 2 1 . 6 4 1 4 Fabricators 8 | . . . . . . 1 . 1 3 . . . . . . . . . . 1 1 1 Repair Stations 7 | . . . . . 1 . . . 3 . . . . . . . . . . 1 2 . Recycling Units 10 | . 2 . . . 1 . . 2 3 . . . . . 2 . . . . . . . Scanalyzers 6 | . . . . . 1 . . 1 1 . . . . . . . . . . 2 1 . Garrison Access 6 | . . . . . . . . 1 2 . . . . . . . . . . 1 . 2 Total Hacks 360 | . 17 . 5 . 12 25 . 26 64 4 7 1 6 . 17 5 1 25 27 60 22 36 Successful 242 | . 9 . 5 . 9 14 . 15 49 1 7 1 6 . 11 5 1 25 21 33 11 19 Failed 117 | . 8 . . . 2 11 . 11 15 3 . . . . 6 . . . 6 27 11 17 Catastrophic 8 | . . . . . 1 2 . 2 . . . . . . . . . . . 1 1 1 Database Lockouts 1 | . . . . . 1 . . . . . . . . . . . . . . . . . Manual 147 | . 7 . 1 . 4 4 . 14 30 4 . . . . 6 2 2 . 19 29 15 10 Terminals 202 | . 13 . . . 4 22 . 9 35 4 . . . . 10 5 1 . 27 37 8 27 Fabricators 32 | . . . . . . 3 . 3 12 . . . . . . . . . . 4 6 4 Repair Stations 14 | . . . . . 1 . . . 4 . . . . . . . . . . 5 4 . Recycling Units 31 | . 4 . . . 2 . . 10 8 . . . . . 7 . . . . . . . Scanalyzers 28 | . . . . . 5 . . 3 3 . . . . . . . . . . 13 4 . Garrison Access 9 | . . . . . . . . 1 2 . . . . . . . . . . 1 . 5 Terminal Hacks 127 | . 6 . 5 . 2 12 . 3 19 . 7 1 6 . 2 3 1 25 9 15 . 11 Record 40 | . . . 4 . . . . . . . 5 . 6 . . . . 25 . . . . Part Schematic 1 | . . . . . . . . . . . . . . . . . . . . 1 . . Robot Analysis 3 | . 2 . . . 1 . . . . . . . . . . . . . . . . . Prototype ID Bank 16 | . 2 . . . . 3 . 1 5 . . . . . . 1 . . . 3 . 1 Open Door 6 | . . . . . . . . . . . 2 1 . . . 1 1 . . . . 1 Open DSF 1 | . . . . . . . . . 1 . . . . . . . . . . . . . Level Access Points 3 | . . . . . . . . . 1 . . . . . . . . . 1 1 . . Branch Access Points 4 | . . . . . . 1 . . 1 . . . . . 1 . . . . . . 1 Emergency Access Points 5 | . . . . . . 1 . . 2 . . . . . . . . . 1 . . 1 Machine Index 3 | . . . . . . . . . 1 . . . . . . . . . 1 1 . . Terminal Index 4 | . . . . . . 1 . . 2 . . . . . . . . . . 1 . . Repair Station Index 1 | . . . . . . . . . . . . . . . . . . . . . . 1 Scanalyzer Index 1 | . . . . . . . . . . . . . . . . . . . . . . 1 Garrison Index 2 | . . . . . . . . . . . . . . . 1 . . . . . . 1 Unreport Threat 1 | . . . . . . . . . . . . . . . . . . . . 1 . . Locate Traps 22 | . 2 . . . 1 5 . 1 3 . . . . . . 1 . . 4 3 . 2 Recall Investigation 1 | . . . . . . . . . . . . . . . . . . . . . . 1 Registered Components 1 | . . . . . . . . . . . . . . . . . . . . 1 . . Registered Prototypes 2 | . . . . . . . . . 1 . . . . . . . . . . 1 . . Zone Layout 9 | . . . . . . 1 . 1 2 . . . . . . . . . 2 2 . 1 Proto ID Catalog 1 | . . . 1 . . . . . . . . . . . . . . . . . . . Fabricator Hacks 6 | . . . . . . . . . 3 . . . . . . . . . . 1 1 1 Network Status 6 | . . . . . . . . . 3 . . . . . . . . . . 1 1 1 Repair Station Hacks 8 | . . . . . 1 . . . 1 . . . . . . . . . . 4 2 . Scan Component 3 | . . . . . . . . . . . . . . . . . . . . 2 1 . Repair 3 | . . . . . . . . . . . . . . . . . . . . 2 1 . Refit 2 | . . . . . 1 . . . 1 . . . . . . . . . . . . . Recycling Unit Hacks 17 | . 1 . . . 1 . . 4 5 . . . . . 6 . . . . . . . Process 3 | . . . . . . . . . 1 . . . . . 2 . . . . . . . Report Inventory 9 | . 1 . . . 1 . . 2 3 . . . . . 2 . . . . . . . Retrieve Matter 3 | . . . . . . . . . 1 . . . . . 2 . . . . . . . Retrieve Components 2 | . . . . . . . . 2 . . . . . . . . . . . . . . Scanalyzer 14 | . . . . . 4 . . 2 2 . . . . . . . . . . 5 1 . Insert Component 1 | . . . . . . . . . 1 . . . . . . . . . . . . . Retrieve Study 13 | . . . . . 4 . . 2 1 . . . . . . . . . . 5 1 . Garrison Access Hacks 5 | . . . . . . . . 1 2 . . . . . . . . . . 1 . 1 Seal Access 5 | . . . . . . . . 1 2 . . . . . . . . . . 1 . 1 Unauthorized Hacks 65 | . 2 . . . 1 2 . 5 17 1 . . . . 3 2 . . 12 7 7 6 Terminals 35 | . 1 . . . 1 . . 1 6 1 . . . . 3 2 . . 12 3 2 3 Track 2 | . . . . . 1 . . . . . . . . . . . . . 1 . . . Botnet 19 | . . . . . . . . 1 5 1 . . . . 2 1 . . 3 2 1 3 Disrupt 3 | . 1 . . . . . . . . . . . . . . 1 . . 1 . . . Operators 5 | . . . . . . . . . 1 . . . . . 1 . . . 1 1 1 . Sabotage 6 | . . . . . . . . . . . . . . . . . . . 6 . . . Fabricators 19 | . . . . . . 2 . . 8 . . . . . . . . . . 3 3 3 Report 1 | . . . . . . . . . 1 . . . . . . . . . . . . . Prioritize 1 | . . . . . . . . . . . . . . . . . . . . . 1 . Liberate 7 | . . . . . . 1 . . 3 . . . . . . . . . . 1 1 1 Fabnet 7 | . . . . . . 1 . . 3 . . . . . . . . . . 1 1 1 Haulers 3 | . . . . . . . . . 1 . . . . . . . . . . 1 . 1 Repair Stations 1 | . . . . . . . . . . . . . . . . . . . . . 1 . Patch 1 | . . . . . . . . . . . . . . . . . . . . . 1 . Recycling Units 8 | . 1 . . . . . . 4 3 . . . . . . . . . . . . . Reject 2 | . . . . . . . . 1 1 . . . . . . . . . . . . . Recyclers 2 | . . . . . . . . 1 1 . . . . . . . . . . . . . Mask 3 | . . . . . . . . 2 1 . . . . . . . . . . . . . Tunnel 1 | . 1 . . . . . . . . . . . . . . . . . . . . . Scanalyzers 2 | . . . . . . . . . . . . . . . . . . . . 1 1 . Researchers 2 | . . . . . . . . . . . . . . . . . . . . 1 1 . Garrison Access . | . . . . . . . . . . . . . . . . . . . . . . . Data Cores Recovered . | . . . . . . . . . . . . . . . . . . . . . . . Used . | . . . . . . . . . . . . . . . . . . . . . . . Hacking Detections 59 | . 5 . . . 4 9 . 5 14 1 . . . . 4 1 . . 1 6 4 5 Full Trace Events 1 | . . . . . . . . . . . . . . . . . . . . . . 1 Feedback Events . | . . . . . . . . . . . . . . . . . . . . . . . Feedback Blocked . | . . . . . . . . . . . . . . . . . . . . . . . Robot Schematics Acquired . | . . . . . . . . . . . . . . . . . . . . . . . Robots Built . | . . . . . . . . . . . . . . . . . . . . . . . Authchips . | . . . . . . . . . . . . . . . . . . . . . . . Time . | . . . . . . . . . . . . . . . . . . . . . . . Total Robot Build Rating . | . . . . . . . . . . . . . . . . . . . . . . . Part Schematics Acquired 1 | . . . . . . . . . . . . . . . . . . . . 1 . . Parts Built . | . . . . . . . . . . . . . . . . . . . . . . . Authchips . | . . . . . . . . . . . . . . . . . . . . . . . Time . | . . . . . . . . . . . . . . . . . . . . . . . Total Part Build Rating . | . . . . . . . . . . . . . . . . . . . . . . . Part Studies Acquired 13 | . . . . . 4 . . 2 1 . . . . . . . . . . 5 1 . Parts Repaired 3 | . . . . . . . . . . . . . . . . . . . . 2 1 . Time 86 | . . . . . . . . . . . . . . . . . . . . 24 62 . Parts Recycled . | . . . . . . . . . . . . . . . . . . . . . . . Recycled Matter 30 | . . . . . . . . . 11 . . . . . 19 . . . . . . . Retrieved Matter 30 | . . . . . . . . . 11 . . . . . 19 . . . . . . . Retrieved Components 6 | . . . . . . . . 6 . . . . . . . . . . . . . . Parts Scanalyzed 1 | . . . . . . . . . 1 . . . . . . . . . . . . . Part Schematics Acquired . | . . . . . . . . . . . . . . . . . . . . . . . Parts Damaged . | . . . . . . . . . . . . . . . . . . . . . . . Bothacking | -11 -10 -10 -10 -9 -8 -7 -7 -7 -6 -5 -5 -5 -5 -4 -4 -4 -4 -4 -4 -3 -2 -1 ------------ Run | Yrd Mat Min Exi Min Mat Fac Was Fac Fac Fac Upp Upp Zhi Pro Fac Ext Cet Arc Hub Res Res Acc Used RIF Installer . | . . . . . . . . . . . . . . . . . . . . . . . Robots Hacked 4 | . . . . . . . . . . 1 . . . 1 1 1 . . . . . . Non-combat . | . . . . . . . . . . . . . . . . . . . . . . . Combat 4 | . . . . . . . . . . 1 . . . 1 1 1 . . . . . . Robot Hacks Applied . | . . . . . . . . . . . . . . . . . . . . . . . Relay Couplers Released 2 | . . . . . . . . . . . . . . . . . . . 2 . . . Machine Destruction 2 | . . . . . . . . . . . . . . . . . . . 2 . . . Fabnet Peak Effective % 10 | . . . . . . . . . 3 10 10 10 10 3 3 3 3 3 3 . 3 4 Autooverrided 4 | . . . . . . . . . . 1 . . . 1 1 1 . . . . . . Robots Rewired . | . . . . . . . . . . . . . . . . . . . . . . . Allies Hacked . | . . . . . . . . . . . . . . . . . . . . . . . Hacks Repelled . | . . . . . . . . . . . . . . . . . . . . . . . Allies | -11 -10 -10 -10 -9 -8 -7 -7 -7 -6 -5 -5 -5 -5 -4 -4 -4 -4 -4 -4 -3 -2 -1 -------- Run | Yrd Mat Min Exi Min Mat Fac Was Fac Fac Fac Upp Upp Zhi Pro Fac Ext Cet Arc Hub Res Res Acc Total Allies 9 | . . 3 . . . . 1 . . 1 . . . 1 1 2 . . . . . . Largest Group 3 | . . 3 1 1 . . 1 . . 1 . . . 1 1 1 . . . . . . Highest-Rated Group 159 | . . 40 8 8 . . 31 . . 29 . . . 47 142 159 . . . . . . Highest-Rated Ally 159 | . . 16 8 8 . . 31 . . 29 . . . 47 142 159 . . . . . . Total Orders 1 | . . . . 1 . . . . . . . . . . . . . . . . . . ROAM 1 | . . . . 1 . . . . . . . . . . . . . . . . . . Ally Attacks 41 | . . 14 . 1 . . 10 . . 3 . . . 4 . 9 . . . . . . Total Damage 744 | . . 106 . . . . 208 . . 39 . . . 154 . 237 . . . . . . Kills 7 | . . 3 . . . . . . . . . . . . . 4 . . . . . . Allies Corrupted . | . . . . . . . . . . . . . . . . . . . . . . . Allies Melted . | . . . . . . . . . . . . . . . . . . . . . . . Intel | -11 -10 -10 -10 -9 -8 -7 -7 -7 -6 -5 -5 -5 -5 -4 -4 -4 -4 -4 -4 -3 -2 -1 ------- Run | Yrd Mat Min Exi Min Mat Fac Was Fac Fac Fac Upp Upp Zhi Pro Fac Ext Cet Arc Hub Res Res Acc Active Infowar (turns) 2255 | . . 2 . . 3 180 . . 434 74 112 98 51 75 173 289 30 66 63 187 259 159 Optics 1168 | . . . . . . . . . . . . . . . 115 289 30 66 63 187 259 159 Sensors 2 | . . 2 . . . . . . . . . . . . . . . . . . . . Terrain 2079 | . . . . . . 65 . . 434 74 112 98 49 75 173 248 30 53 63 187 259 159 T.N.C. 118 | . . . . . 3 115 . . . . . . . . . . . . . . . . Triangulation 314 | . . . . . . . . . . 73 112 98 31 . . . . . . . . . ECM 1 | . . . . . . . . . 1 . . . . . . . . . . . . . Robot Analysis Total 3 | . 2 . . . 1 . . . . . . . . . . . . . . . . . Derelict Logs Recovered 7 | . . 1 . 1 . . . . . . 3 1 . 1 . . . . . . . . Drone Launches . | . . . . . . . . . . . . . . . . . . . . . . . Drone Recoveries . | . . . . . . . . . . . . . . . . . . . . . . . Exploration | -11 -10 -10 -10 -9 -8 -7 -7 -7 -6 -5 -5 -5 -5 -4 -4 -4 -4 -4 -4 -3 -2 -1 ------------- Run | Yrd Mat Min Exi Min Mat Fac Was Fac Fac Fac Upp Upp Zhi Pro Fac Ext Cet Arc Hub Res Res Acc Turns Passed 6156 | 54 600 1033 398 175 926 444 66 341 483 74 112 98 51 75 173 289 30 66 63 187 259 159 Spaces Moved 9031 | 20 291 551 311 170 801 587 122 496 1122 244 368 362 152 292 509 507 97 111 187 478 720 533 Core 11 | 11 . . . . . . . . . . . . . . . . . . . . . . Treads 993 | 3 291 551 148 . . . . . . . . . . . . . . . . . . . Legs 2343 | 6 . . 163 170 801 587 122 494 . . . . . . . . . . . . . . Wheels . | . . . . . . . . . . . . . . . . . . . . . . . Hover . | . . . . . . . . . . . . . . . . . . . . . . . Flight 5684 | . . . . . . . . 2 1122 244 368 362 152 292 509 507 97 111 187 478 720 533 Fastest Speed 8 | 120 160 160 90 45 45 45 45 45 26 24 24 24 24 24 25 25 25 25 25 26 16 8 Average Speed 51 | 197 160 160 123 89 88 62 46 51 26 24 24 24 24 24 25 25 25 25 25 26 22 18 Slowest Speed 250 | 250 160 160 170 90 90 90 90 186 186 27 24 24 24 24 25 25 25 28 28 26 26 20 Overloaded Moves 997 | . . . . 3 20 382 119 433 . . . . . . . . . . . . 15 25 Propulsion Burnouts . | . . . . . . . . . . . . . . . . . . . . . . . Robots Hopped 115 | . . . . . . . . . 27 2 . 1 . . 9 25 3 . 16 9 17 6 Potential Cave-ins . | . . . . . . . . . . . . . . . . . . . . . . . Cave-ins Triggered . | . . . . . . . . . . . . . . . . . . . . . . . Teleports 1 | . . . . . . . . . . . . . . . . 1 . . . . . . Exploration Rate (%) 44 | 2 61 98 69 52 45 26 77 18 38 6 53 62 61 51 17 48 63 84 32 17 22 18 Regions Visited 22 Branch Regions 11 Pre-discovered Areas 7 | . 1 . 1 . . . . . . . 1 . 3 1 . . . . . . . . Known Exits Taken 8 | . . . . . . . . 1 1 1 . . . 1 1 . . . 1 1 1 . Unknown Exits Taken 12 | 1 1 1 1 1 1 . . . . . 1 1 1 . . 1 1 1 . . . . Scrap Searched 8 | . . 1 . 1 . . . . . . 2 3 . 1 . . . . . . . . Spaces Dug 60 | . . . . . . 2 . 8 16 2 2 . . 1 7 1 1 . 3 1 3 13 Terrain Destroyed 70 | 2 . . . 8 . 2 . 8 16 2 2 . . 1 7 1 1 . 3 1 3 13 Melee 60 | . . . . . . 2 . 8 16 2 2 . . 1 7 1 1 . 3 1 3 13 Projectile . | . . . . . . . . . . . . . . . . . . . . . . . AOE 10 | 2 . . . 8 . . . . . . . . . . . . . . . . . . Terrain Rammed . | . . . . . . . . . . . . . . . . . . . . . . . Walls Destroyed . | . . . . . . . . . . . . . . . . . . . . . . . Machines Disabled . | . . . . . . . . . . . . . . . . . . . . . . . Actions | -11 -10 -10 -10 -9 -8 -7 -7 -7 -6 -5 -5 -5 -5 -4 -4 -4 -4 -4 -4 -3 -2 -1 --------- Run | Yrd Mat Min Exi Min Mat Fac Was Fac Fac Fac Upp Upp Zhi Pro Fac Ext Cet Arc Hub Res Res Acc Total 10077 | 28 373 657 325 190 986 655 132 577 1241 252 380 369 163 294 525 629 97 145 182 526 794 557 Wait 636 | . 27 47 6 9 113 13 9 43 75 . 3 8 . . 4 120 3 33 . 47 66 10 Move 8798 | 19 290 550 310 169 800 587 121 495 1069 239 367 359 151 291 491 462 91 110 161 459 686 521 Hop 96 | . . . . . . . . . 25 2 . 1 . . 8 19 2 . 9 9 16 5 Pick Up 86 | 1 11 10 3 3 13 13 1 5 6 1 . . 1 . 3 1 . . 3 3 7 1 Fast Attach 39 | . 1 2 2 . 1 4 . 1 4 3 3 . 5 1 1 1 . . . 4 5 1 Attach 33 | 2 1 . . . 8 2 . 4 4 2 . . . . 2 1 . . . 3 2 2 Detach 17 | 2 . 1 . . 3 2 . 1 3 1 1 . . 1 . . . . . . 1 1 Swap 49 | . 3 5 1 2 11 4 . 4 7 . . . . . 2 4 . 1 2 . 1 2 Drop 97 | . 6 12 3 1 13 12 1 12 14 2 1 . 5 . 4 1 . . 4 . 6 . Fire 88 | 4 29 23 . 3 21 8 . . . . . . . . . . . . . . . . Melee 87 | . . 4 . . . 2 . 12 19 2 5 1 1 1 10 6 1 1 3 1 4 14 Ram . | . . . . . . . . . . . . . . . . . . . . . . . Kick 14 | . . . . 3 3 8 . . . . . . . . . . . . . . . . Crush 8 | . 5 3 . . . . . . . . . . . . . . . . . . . . Escape Stasis 29 | . . . . . . . . . 15 . . . . . . 14 . . . . . . Rewire . | . . . . . . . . . . . . . . . . . . . . . . . Trap . | . . . . . . . . . . . . . . . . . . . . . . . Miscellaneous . | . . . . . . . . . . . . . . . . . . . . . . . Route ------- -11/Scrapyard -10/Materials (discovered 3 exits: [*Mat] / [*Min x2]) -10/Mines (discovered 4 exits: [*Mat x2] / *Exi / [*Sub]) -10/Exiles -9/Mines -8/Materials -7/Factory (discovered 3 exits: *Fac / Low x2) -7/Waste -7/Factory -6/Factory (discovered 6 exits: *Fac x4 / Low x2) -5/Factory -5/Upper Caves -5/Upper Caves (discovered 2 exits: *Fac / *Zhi) -5/Zhirov -4/Proximity Caves -4/Factory (discovered 7 exits: Res x2 / *Upp x2 / *Ext x2 / Arm) -4/Extension (discovered 2 exits: *Res / *Cet) -4/Cetus -4/Archives (discovered 2 exits: *Hub x2) -4/Hub_04(d) (discovered 4 exits: *Res x4) -3/Research (discovered 3 exits: *Res x3) -2/Research -1/Access (discovered 2 exits: [*Sur] / Com) To Epsilon Eridani History --------- Turn | Location | Event 7 | -11/Scrapyard | Discovered new exit (range 2) 55 | -11/Scrapyard | Entered Materials 309 | -10/Materials | Build established: Mutant 368 | -10/Materials | Discovered new exit (range 15) 620 | -10/Materials | Discovered new exit (range 11) 637 | -10/Materials | Discovered new exit (range 16) 655 | -10/Materials | Entered Mines 798 | -10/Mines | Found DCF Scrap (13 items) 962 | -10/Mines | Discovered new exit (range 12) 1262 | -10/Mines | Learned Materials terminal intel 1266 | -10/Mines | Discovered new exit (range 12) 1280 | -10/Mines | Assisted by bots powering up and referring to "LRC-V3" 1520 | -10/Mines | Found a damaged Exp. Sensor Array with a note attached 1523 | -10/Mines | Found Prototype Device 1523 | -10/Mines | Identified Exp. Sensor Array 1573 | -10/Mines | Discovered new exit (range 10) 1640 | -10/Mines | Excavation squad dispatched 1640 | -10/Mines | A large section of the Mines collapsed 1647 | -10/Mines | Deemed a non-threat by the Exiles lab entrance 1647 | -10/Mines | Discovered new exit (range 5) 1688 | -10/Mines | Entered Exiles 1688 | -10/Exiles | Accompanied by 1 ally 1727 | -10/Exiles | Met 8R-AWN 1754 | -10/Exiles | Met EX-HEX 1828 | -10/Exiles | Learned location of Zion (-7) 1853 | -10/Exiles | Met EX-BIN 1876 | -10/Exiles | Aligned with FarCom system 1877 | -10/Exiles | Given EX-Vault access code 1914 | -10/Exiles | Opened EX-Vault 1926 | -10/Exiles | Found Potential Leg 1929 | -10/Exiles | Found Potential Leg 1947 | -10/Exiles | Warned to stay clear of 0b10 Research branches 1961 | -10/Exiles | Exiles lab attacked by MAIN.C 2072 | -10/Exiles | Discovered new exit (range 10) 2086 | -10/Exiles | Left Exiles lab with Potential Leg 2086 | -10/Exiles | Entered Mines 2086 | -9/Mines | Accompanied by 1 ally 2198 | -9/Mines | A weapon hastily lodged in a ceiling crevice suddenly fell to the ground 2229 | -9/Mines | Learned Materials terminal intel 2250 | -9/Mines | Discovered new exit (range 8) 2261 | -9/Mines | Entered Materials 2261 | -8/Materials | Evolved 4 slots: Propulsion x2, Utility x2 2262 | -8/Materials | Loaded intel: 12 terminal locations 2624 | -8/Materials | Central database locked down 2873 | -8/Materials | Discovered new exit (range 5) 3187 | -8/Materials | Entered Factory 3187 | -7/Factory | Evolved 2 slots: Utility x2 3596 | -7/Factory | Identified exit to Lower Caves 3631 | -7/Factory | Discovered new exit (range 8) 3631 | -7/Factory | Sucked down chute 3631 | -7/Factory | Entered Waste 3632 | -7/Waste | Met a frightened Derelict 3636 | -7/Waste | Spotted C-40 Crusher 3645 | -7/Waste | Spotted C-40 Crusher 3651 | -7/Waste | Spotted C-40 Crusher 3683 | -7/Waste | Spotted C-40 Crusher 3686 | -7/Waste | Spotted C-40 Crusher 3689 | -7/Waste | Spotted C-40 Crusher 3690 | -7/Waste | Discovered new exit (range 14) 3696 | -7/Waste | Identified exit to Factory 3697 | -7/Waste | Entered Factory 3888 | -7/Factory | Build established: Hacker-Mutant 3975 | -7/Factory | Discovered new exit (range 8) 3986 | -7/Factory | Identified exit to Factory 4038 | -7/Factory | Entered another Factory area 4038 | -6/Factory | Evolved 2 slots: Utility x2 4177 | -6/Factory | Identified exit to Factory 4239 | -6/Factory | Identified exit to Lower Caves 4481 | -6/Factory | Build established: Hacker-Scout 4521 | -6/Factory | Entered another Factory area 4521 | -5/Factory | Evolved 2 slots: Propulsion x1, Utility x1 4577 | -5/Factory | Discovered new exit (range 11) 4580 | -5/Factory | Identified exit to Upper Caves 4595 | -5/Factory | Entered Upper Caves 4607 | -5/Upper Caves | Found Alien Artifact 4607 | -5/Upper Caves | Identified Dimensional Node Initializer 4607 | -5/Upper Caves | Initialized slip node 4615 | -5/Upper Caves | Learned location of Armory (-4) 4618 | -5/Upper Caves | Learned 4 Factory zone layouts 4641 | -5/Upper Caves | Entered an active Warlord outpost 4643 | -5/Upper Caves | Learned 8 Research zone layouts 4643 | -5/Upper Caves | Learned Factory emergency access door positions 4643 | -5/Upper Caves | Learned Extension garrison access intel 4643 | -5/Upper Caves | Learned Armory garrison access intel 4663 | -5/Upper Caves | Learned location of 1 exit from Proximity Caves 4706 | -5/Upper Caves | Discovered new exit (range 3) 4707 | -5/Upper Caves | Entered another Upper Caves area 4707 | -5/Upper Caves | Discovered new exit (range 6) 4760 | -5/Upper Caves | Learned Factory stockpile data 4796 | -5/Upper Caves | Discovered new exit (range 7) 4805 | -5/Upper Caves | Entered Zhirov 4805 | -5/Zhirov | Discovered new exit (range 3) 4814 | -5/Zhirov | Learned location of Quarantine (-2) 4814 | -5/Zhirov | Learned location of Testing (-3) 4814 | -5/Zhirov | Learned location of Command (-1) 4824 | -5/Zhirov | Found Alien Artifact 4824 | -5/Zhirov | Identified Integrated Dissipator 4824 | -5/Zhirov | Installed Integrated Dissipator, increased core heat dissipation (+20) 4846 | -5/Zhirov | Found Alien Artifact 4856 | -5/Zhirov | Entered Proximity Caves 4857 | -4/Proximity Caves | Identified exit to Factory 4880 | -4/Proximity Caves | Build established: Hacker-Sprinter 4931 | -4/Proximity Caves | Entered Factory 4931 | -4/Factory | Evolved 2 slots: Propulsion x1, Utility x1 4932 | -4/Factory | Identified exit to Research 4973 | -4/Factory | Identified exit to Upper Caves 4973 | -4/Factory | Identified exit to Extension 4973 | -4/Factory | Identified exit to Armory 5076 | -4/Factory | Spotted B-86 Titan 5104 | -4/Factory | Entered Extension 5121 | -4/Extension | Spotted B-86 Titan 5166 | -4/Extension | Rescued A7 5227 | -4/Extension | Build established: Hacker-Scout 5322 | -4/Extension | Spotted B-86 Titan 5338 | -4/Extension | Identified Transdimensional Reconstructor 5338 | -4/Extension | Warped through subspace 5384 | -4/Extension | Discovered exit to Research (range 19) 5384 | -4/Extension | Discovered new exit (range 19) 5393 | -4/Extension | Entered Cetus 5396 | -4/Cetus | Spotted Cetus Guard 5396 | -4/Cetus | Spotted Cetus Guard 5396 | -4/Cetus | Spotted Cetus Guard 5398 | -4/Cetus | Spotted Cetus Guard 5418 | -4/Cetus | Discovered new exit (range 22) 5423 | -4/Cetus | Entered Archives 5435 | -4/Archives | Met Zhirov 5435 | -4/Archives | Discovered new exit (range 22) 5436 | -4/Archives | Discovered new exit (range 22) 5438 | -4/Archives | Read partially decrypted archive contents 5441 | -4/Archives | Reinforcements dispatched to Archives 5486 | -4/Archives | Reinforcements dispatched to Archives 5488 | -4/Archives | Zhirov warped through subspace 5489 | -4/Archives | Entered Hub_04(d) 5507 | -4/Hub_04(d) | Network Hub disabled 5509 | -4/Hub_04(d) | Network Hub disabled 5511 | -4/Hub_04(d) | Network Hub disabled 5552 | -4/Hub_04(d) | Entered Research 5552 | -3/Research | Evolved 2 slots: Power x1, Propulsion x1 5643 | -3/Research | Identified exit to Research 5704 | -3/Research | Repaired Greatsword+ 5714 | -3/Research | Repaired VTOL Module+ 5739 | -3/Research | Entered another Research area 5739 | -2/Research | Evolved 2 slots: Propulsion x1, Utility x1 5852 | -2/Research | Found Powered Armor 5968 | -2/Research | Repaired Adv. Reaction Control System 5976 | -2/Research | Discovered new exit (range 16) 5996 | -2/Research | Identified exit to Access 5998 | -2/Research | Entered Access 5998 | -1/Access | Evolved 2 slots: Propulsion x1, Utility x1 6085 | -1/Access | Unchained authorized (CL-0N3) 6139 | -1/Access | Identified exit to Command 6156 | -1/Access | Discovered new exit (range 6) 6157 | *** | Escaped! Last Messages --------------- Found 1 branch access point: (102,258) Command Map updated. >>Trojan(Botnet) Trojan loaded successfully. Testing... Terminal linked with 2 systems. Awaiting botnet instructions. >>Recall(Investigation) Establishing remote squad link... No tasked investigation squads found. 06139_ ALERT: Suspicious activity at Terminal A018. Dispatching Investigation squad. 06139_ K-01 Serf cleans the Terminal. 06145_ ALERT: Suspicious intruders detected, dispatching Cutter reinforcements to area. 06156_ Connecting with Terminal... >>Open(Door) Sealed Barrier opened. 06156_ The Access Shell folds into the floor. 06156_ EXIT=FOUND [Achievement: I Was Wrong!] Map ----- +----------------------------------------------------+ | ?????????????????????????????????????????????????? | | ?????????????????????????????????????????? ? ????? | | ????????????????????????????????????????????? ?? | | ?????????????????????????????????????????????????? | | ?????????????????????????????????????????????????? | | ????????????????????????????????????????? ???????? | | ????????????????????????????? ??"? ??????#???????? | | ????????????????????????????????? ???????????????? | | ?????????????????? ??????????#????#?????#???????#? | | ???????????????????????? ???????#?#??????????##### | | ?????????????????????????????????????#???#???# | | ??????????????????????????? ???#????#????#?#?# | | ??????????????????????????????#??#?????????### | | ????????????#??????#?? ????????#?????##??????# | | ????????????????#?#??BB? ??BB?????#?##?#?????# "" | | ?????????????????????BB?? ?BB??#??#????#?#?#?# " | | ???? ????????#??????????? ?? ??#????#?#??#### | | ???????#?? ????? ???"""?"????"#?#????????????# | | ??????????????? ???"?????????#????####??#?#?# | | ?????????????????#??????"?????#?###?#??##????# | | ??????????? ????#?#""""""""""#?#????##?????## | | ??????????? ??????# #????#?????##??# | | ??????????? ???"??## #???????????#####++# | | ??????????? ??????# ################# | | ?????????????? ??# "" ### + | | ?????????? ????????# "@ ### ### # | | ?????????#???#?????# ### "" ### # | | ??#???????????#?#??# ### "" #?# # | | ?????????? ?? ?????# ### """""" #?# # | | ????????????? #?#?## ##" """""" ] #?# # | | ????????????? ?#??# ## "" #?# # | | ??? ??????? ????#?##"" ### "" = #?# # | | ???????????????????#"" ### ### # | | ??????????????????##"" ### #?# # | | ???"????????????##?#T ### ### # | | ??????????? ???????#"" #?# #?# # | | ?"????????? ????##?#"" ### ### # | | ???????????? ??????#"" ##"##+#########? | | ??????????# | | ??????????# | | ??????????#########################+########## | | ?????????????#???#????????###??#???? ?? ??? ### # | | ????????????????????##??#???????? ??? ? ? ??? ? | | ???????? ???????????#???#?????#???? ??????????# ? | | ??????#??????##?????????#??#????? ????????? ##? # | | ??????????? ????? #???????#?????? ??T????? ?#??? # | | ????????? ???????????????#???????? "??? ???# ?? | | ????????????????? #??#?????#????#???"?? ? ??#???? | | ???????????????? ?????#??#??????#????????? ??#? ? | | ???????????? ?? ??????#?????????? ??? ??? ??##??? | +----------------------------------------------------+ Best States ------------- Heat Dissipation 72 Energy Generation 38 Energy Capacity 665 Matter Stores 300 Matter Capacity 300 Sight Range 22 Terrain Scan Range 24 Terrain Scan Density 210 ECM Strength 2 Armor Coverage 550 Resistance: KI 20 Resistance: TH 50 Resistance: EX 20 Resistance: EM 20 Resistance: I 20 Resistance: S 20 Resistance: P 20 Point Defense Rating 240 Evasion (%) 78 Targeting Accuracy 12 Melee Accuracy 16 Core Analysis 6 Recoil Reduction 2 Offensive Hacking 46 Defensive Hacking 24 Item Schematics ----------------- Enh. Nova Cannon | -3/Research | Hacked Robot Schematics ------------------ None Fabricated ------------ Nothing Repaired ---------- Greatsword | 8% | -3/Research VTOL Module | 8% | -3/Research Adv. Reaction Control System | 50% | -2/Research Studied --------- Lgt. Ion Engine | -8/Materials | Hacked Flight Unit | -8/Materials | Hacked Grenade Launcher | -8/Materials | Hacked Minigun | -8/Materials | Hacked Cesium-ion Thruster | -7/Factory | Hacked VTOL Module | -7/Factory | Hacked Lgt. Fission Core | -6/Factory | Hacked Nuclear Pulse Array | -3/Research | Hacked Neutrino Core | -3/Research | Hacked Greatsword | -3/Research | Hacked Mic. Antimatter Reactor | -3/Research | Hacked Imp. Proton Missile Launcher | -3/Research | Hacked Lgt. Quantum Reactor | -2/Research | Hacked Alien Tech Used ----------------- Dimensional Node Initializer Integrated Dissipator Transdimensional Reconstructor Achievements -------------- Express Service Fitting Room For Emergencies Only Heavy Suspicion I Have A Map? I Laugh At Your Crits I Was Wrong! Item+ Myspace Organ Harvest Overwhelming Sixth Sense Spot Them First Sprinter The Better Part Of Valor Throw Away The Key Tune-up Challenges ------------ None Game ------ Seed ChainActuatorCalibrator Manual? 0 Play Time 03:23:20 Cumulative 456.3 hours Start 2025.10.22 @ 01:13:43 End 2025.10.22 @ 20:38:05 Sessions 3 Manual Loads 0 Difficulty Adventurer Special Mode None Game No. 129 Rogue 81 Adventurer 48 Explorer 0 Win Type 0 Total 30 Types 22/0/5/1/2/0/0/0/0/0 Lore% 75 Gallery% 84 Achievement% 49 Wizard Run 0 Options --------- Layout 0 ASCII 0 Keyboard 1 Movement Vi Keybinds 0 Fullscreen 2 Font 16/Tamsyn Map View 89x57 Zoom Use 0% Tactical HUD 1 Map Filters NONE Filters NONE Steam 1 RUN: 84708ab7-523d-4d6e-adba-080f9107dc4d